bitfinex/quotes_SOLUSD_20250721
["timestamp","ask_amount","ask_price","bid_price","bid_amount"]
[1753089075762,5.91740001,190.66,190.65,58.9]
[1753089078685,5.91740001,190.66,190.63,0.03]
[1753089078870,5.91740001,190.64,190.63,0.03]
[1753089084569,5.91740001,190.64,190.63,75.71468397]
[1753089087790,5.24533055,190.65,190.63,58.93]
[1753089087994,5.91740001,190.64,190.63,58.93]
[1753089090567,5.91740001,190.64,190.63,0.03]
[1753089091007,0.06,190.71,190.64,16.78468397]
[1753089091192,5.91740001,190.67,190.66,16.78468397]
[1753089091400,5.91740001,190.67,190.66,75.68468397]
[1753089092277,5.91740001,190.67,190.66,16.78468397]
[1753089094199,0.06,190.71,190.66,16.78468397]
[1753089094500,5.91740001,190.67,190.66,16.78468397]
[1753089094698,5.91740001,190.67,190.66,53.82468397]
[1753089097595,5.24404828,190.7,190.66,53.82468397]
[1753089097802,5.91740001,190.67,190.66,53.82468397]
[1753089099473,5.91740001,190.67,190.66,112.72468397]
[1753089102296,5.91740001,190.68,190.66,112.72468397]
[1753089104686,0.06,190.67,190.66,112.72468397]
[1753089108597,5.97740001,190.67,190.66,112.72468397]
[1753089109505,0.06,190.67,190.66,112.72468397]
[1753089110505,0.06,190.67,190.66,117.9696226]
[1753089110715,0.00410524,190.67,190.66,123.88702261]
[1753089110925,0.06,190.71,190.66,123.88702261]
[1753089111418,0.06,190.71,190.68,16.78468397]
[1753089111600,0.06,190.71,190.7,16.78468397]
[1753089111918,0.06,190.71,190.7,75.68468397]
[1753089112423,5.97740001,190.71,190.7,75.68468397]
[1753089113822,0.06,190.71,190.7,75.68468397]
[1753089114026,5.97740001,190.71,190.7,75.68468397]
[1753089116622,5.97740001,190.71,190.7,58.9]
[1753089117227,5.97740001,190.71,190.69,36.98]
[1753089117412,5.91740001,190.7,190.69,53.76468397]
[1753089118523,5.91740001,190.7,190.66,16.78468397]
[1753089118712,5.91740001,190.68,190.67,53.76468397]
[1753089118913,5.30361675,190.71,190.68,16.78468397]
[1753089119115,5.91740001,190.69,190.68,16.78468397]
[1753089120724,5.97740001,190.71,190.68,22.02893743]
[1753089120920,0.06,190.71,190.7,16.78468397]
[1753089121121,0.06,190.73,190.72,16.78468397]
[1753089121328,0.06,190.73,190.72,59.68208398]
[1753089121522,0.06,190.73,190.72,118.58208398]
[1753089121829,0.06,190.73,190.72,123.82537257]
[1753089125944,0.06,190.77,190.72,123.82537257]
[1753089126114,0.06,190.77,190.75,16.78468397]
[1753089126439,0.06,190.77,190.74,5.91740001]
[1753089126440,0.06,190.77,190.76,53.74468397]
[1753089126735,0.06,190.77,190.76,112.64468397]
[1753089129145,0.06,190.77,190.76,75.68468397]
[1753089129344,0.06,190.77,190.76,112.64468397]
[1753089130942,0.06,190.77,190.76,117.8868731]
[1753089131724,0.06,190.77,190.76,112.64468397]
[1753089131925,5.97740001,190.77,190.76,112.64468397]
[1753089137251,5.97740001,190.77,190.76,95.86]
[1753089137423,11.21931435,190.77,190.76,58.9]
[1753089137619,11.21931435,190.77,190.75,95.84]
[1753089137850,5.91740001,190.76,190.75,112.62468397]
[1753089140422,5.91740001,190.76,190.75,58.9]
[1753089140645,11.15958914,190.76,190.75,58.9]
[1753089140854,11.15958914,190.76,190.73,36.94]
[1753089141163,5.91740001,190.74,190.73,53.72468397]
[1753089143239,11.16013881,190.74,190.73,58.9]
[1753089143734,11.16013881,190.74,190.71,36.92]
[1753089144251,5.91740001,190.72,190.71,36.92]
[1753089144638,5.91740001,190.72,190.7,36.92]
[1753089144840,5.91740001,190.71,190.7,53.70468397]
[1753089146061,26.0,190.76,190.71,16.78468397]
[1753089146232,5.91740001,190.73,190.72,53.70468397]
[1753089147152,26.0,190.76,190.73,16.78468397]
[1753089147352,5.91740001,190.75,190.74,53.70468397]
[1753089149433,5.91740001,190.75,190.74,16.78468397]
[1753089149633,11.15986396,190.75,190.74,75.68468397]
[1753089150332,0.06,190.77,190.74,75.68468397]
[1753089150563,5.91740001,190.76,190.75,36.92]
[1753089150729,5.97740001,190.77,190.76,16.78468397]
[1753089152269,0.06,190.77,190.76,16.78468397]
[1753089152449,5.97740001,190.77,190.76,16.78468397]
[1753089155057,0.06,190.77,190.76,75.68468397]
[1753089155855,5.97740001,190.77,190.76,112.60468397]
[1753089157863,0.06,190.77,190.76,112.60468397]
[1753089158052,5.97740001,190.77,190.76,112.60468397]
[1753089161058,0.06,190.77,190.76,112.60468397]
[1753089163974,0.06,190.77,190.76,117.8468731]
[1753089164155,5.91740001,190.8,190.76,117.8468731]
[1753089164864,0.06,190.81,190.76,117.8468731]
[1753089165064,5.91740001,190.79,190.76,117.8468731]
[1753089165268,5.91740001,190.78,190.76,112.60468397]
[1753089165780,0.06,190.81,190.76,112.60468397]
[1753089165952,5.91740001,190.78,190.76,112.60468397]
[1753089166275,5.91740001,190.79,190.76,112.60468397]
[1753089167276,5.91740001,190.79,190.76,117.84684489]
[1753089167476,0.06,190.81,190.76,117.84684489]
[1753089167773,5.91740001,190.77,190.76,75.68468397]
[1753089167967,5.91740001,190.77,190.76,58.9]
[1753089168780,31.91740001,190.77,190.74,53.66468397]
[1753089169077,5.91740001,190.75,190.74,53.66468397]
[1753089174289,5.91740001,190.75,190.74,112.56468397]
[1753089174456,5.91740001,190.75,190.74,58.9]
[1753089174457,11.15986396,190.75,190.74,58.9]
[1753089175561,0.06,190.77,190.75,16.78468397]
[1753089175983,5.91740001,190.76,190.75,16.78468397]
[1753089176281,5.91740001,190.76,190.75,53.66468397]
[1753089176855,11.15958914,190.76,190.74,58.9]
[1753089177056,31.91740001,190.75,190.73,0.03]
[1753089177263,5.91740001,190.74,190.73,0.03]
[1753089178382,5.91740001,190.74,190.73,36.91]
[1753089179768,5.91740001,190.74,190.73,53.69468397]
[1753089180583,5.91740001,190.74,190.73,16.81468397]
[1753089181180,11.16013881,190.74,190.73,0.03]
[1753089182281,11.16013881,190.74,190.73,58.93]
[1753089184176,11.16013881,190.74,190.73,0.03]
[1753089184372,12.74123881,190.74,190.72,0.03]
[1753089184690,37.83480002,190.73,190.69,0.03]
[1753089184991,11.83480002,190.7,190.69,0.03]
[1753089186171,17.0786385,190.7,190.69,0.03]
[1753089188375,17.0786385,190.7,190.67,59.87514386]
[1753089188591,5.91740001,190.68,190.67,59.87514386]
[1753089189190,5.24383848,190.7,190.67,59.87514386]
[1753089189479,5.91740001,190.71,190.68,16.78468397]
[1753089189681,5.91740001,190.71,190.7,16.78468397]
[1753089189894,5.91740001,190.71,190.68,36.88]
[1753089190084,5.91740001,190.69,190.68,36.88]
[1753089190289,5.91740001,190.69,190.67,59.87514386]
[1753089190501,5.91740001,190.68,190.67,59.87514386]
[1753089191002,5.91740001,190.68,190.67,0.97514386]
[1753089198406,11.16178851,190.68,190.67,0.97514386]
[1753089199492,31.24383848,190.7,190.67,0.97514386]
[1753089199699,5.91740001,190.68,190.67,0.97514386]
[1753089201608,11.16178851,190.68,190.67,0.97514386]
[1753089205516,5.91740001,190.68,190.67,0.97514386]
[1753089208820,5.91740001,190.68,190.67,59.87514386]
[1753089210696,2.73740383,190.73,190.68,16.78468397]
[1753089210904,5.91740001,190.7,190.68,75.68468397]
[1753089211106,5.91740001,190.7,190.69,36.88]
[1753089211926,5.91740001,190.72,190.7,16.78468397]
[1753089212127,5.91740001,190.71,190.69,16.78468397]
[1753089212419,26.0,190.73,190.7,36.88]
[1753089213431,5.91740001,190.71,190.7,112.56468397]
[1753089218027,5.2427597,190.74,190.71,16.78468397]
[1753089218207,5.91740001,190.72,190.71,16.78468397]
[1753089220511,5.2427597,190.74,190.71,16.78468397]
[1753089220716,5.2427597,190.74,190.71,75.68468397]
[1753089220717,5.91740001,190.72,190.71,75.68468397]
[1753089221810,5.91740001,190.72,190.71,80.92824749]
[1753089222030,0.06,190.75,190.71,80.92824749]
[1753089222236,5.91740001,190.73,190.72,53.64468397]
[1753089222436,5.91740001,190.73,190.72,112.54468397]
[1753089223433,0.06,190.75,190.73,16.78468397]
[1753089223634,26.06,190.75,190.74,53.64468397]
[1753089223834,26.06,190.75,190.74,16.78468397]
[1753089224335,26.0,190.74,190.71,58.9]
[1753089224543,5.91740001,190.72,190.71,58.9]
[1753089228140,11.1606886,190.72,190.71,58.9]
[1753089228710,5.91740001,190.72,190.71,58.9]
[1753089229141,11.1606886,190.72,190.71,58.9]
[1753089229635,5.91740001,190.72,190.71,58.9]
[1753089230023,5.91740001,190.72,190.71,75.68468397]
[1753089230228,5.91740001,190.72,190.71,112.54468397]
[1753089233239,11.1606886,190.72,190.71,75.68468397]
[1753089234454,5.91740001,190.72,190.71,75.68468397]
[1753089235537,11.1606886,190.72,190.71,58.9]
[1753089241028,11.1606886,190.72,190.71,54.55889116]
[1753089241429,11.1606886,190.72,190.68,105.00357513]
[1753089241730,5.91740001,190.69,190.68,105.00357513]
[1753089243848,62.92,190.75,190.68,105.00357513]
[1753089244039,5.91740001,190.7,190.68,105.00357513]
[1753089244241,5.91740001,190.69,190.68,105.00357513]
[1753089245651,11.16151349,190.69,190.68,51.35889116]
[1753089249645,5.91740001,190.69,190.68,105.00357513]
[1753089251639,5.24376953,190.71,190.68,105.00357513]
[1753089251842,5.91740001,190.69,190.68,105.00357513]
[1753089253336,50.02654092,190.75,190.69,16.78468397]
[1753089253553,5.91740001,190.7,190.69,16.78468397]
[1753089253749,5.91740001,190.71,190.69,68.14357513]
[1753089254060,5.91740001,190.71,190.7,53.62468397]
[1753089254243,5.91740001,190.72,190.71,16.78468397]
[1753089259070,5.91740001,190.72,190.71,68.14357513]
[1753089262647,5.30246395,190.75,190.71,68.14357513]
[1753089262843,5.91740001,190.72,190.71,68.14357513]
[1753089264949,11.1606886,190.72,190.68,51.35889116]
[1753089265167,5.91740001,190.69,190.68,68.14357513]
[1753089265344,5.91740001,190.69,190.68,51.35889116]
[1753089265544,5.91740001,190.69,190.67,1.00514386]
[1753089265746,5.91740001,190.68,190.67,17.78982783]
[1753089265956,11.16178851,190.68,190.67,1.00514386]
[1753089267275,5.24383848,190.7,190.67,1.00514386]
[1753089267576,5.91740001,190.68,190.67,1.00514386]
[1753089268160,5.24383848,190.7,190.67,1.00514386]
[1753089268361,5.91740001,190.68,190.67,1.00514386]
[1753089270047,5.91740001,190.68,190.67,17.78982783]
[1753089275164,11.16178851,190.68,190.67,1.00514386]
[1753089276172,5.91740001,190.68,190.67,1.00514386]
[1753089276564,11.16178851,190.68,190.67,1.00514386]
[1753089276972,11.16178851,190.68,190.67,56.70514386]
[1753089277859,5.91740001,190.68,190.67,56.70514386]
[1753089278357,5.91740001,190.68,190.67,73.48982783]
[1753089279265,3.80321096,190.68,190.67,73.48982783]
[1753089280970,5.24381076,190.71,190.68,16.78468397]
[1753089281155,29.80321096,190.69,190.68,16.78468397]
[1753089282469,7.98062222,190.73,190.68,72.48468397]
[1753089282669,3.80321096,190.72,190.7,16.78468397]
[1753089283176,3.80321096,190.71,190.7,16.78468397]
[1753089285178,5.9397308,190.71,190.7,16.78468397]
[1753089285761,5.9397308,190.71,190.7,72.48468397]
[1753089286473,5.24331905,190.72,190.7,72.48468397]
[1753089286663,5.9397308,190.71,190.7,72.48468397]
[1753089290862,11.18329432,190.71,190.7,55.7]
[1753089291561,11.18329432,190.71,190.69,92.52]
[1753089291760,5.9397308,190.7,190.69,92.52]
[1753089292194,5.9397308,190.7,190.69,55.7]
[1753089292896,5.9397308,190.7,190.69,72.48468397]
[1753089297563,5.9397308,190.7,190.69,16.78468397]
[1753089298683,5.2433516,190.72,190.69,16.78468397]
[1753089298884,5.9397308,190.7,190.69,16.78468397]
[1753089299570,5.2433516,190.72,190.69,16.78468397]
[1753089299770,5.9397308,190.7,190.69,16.78468397]
[1753089300184,5.2433516,190.72,190.69,16.78468397]
[1753089300379,5.9397308,190.7,190.69,16.78468397]
[1753089303090,5.24347265,190.72,190.69,16.78468397]
[1753089303273,5.9397308,190.7,190.69,16.78468397]
[1753089303593,5.9397308,190.7,190.69,72.48468397]
[1753089303777,5.9397308,190.7,190.69,109.30468397]
[1753089304095,5.9397308,190.71,190.7,16.78468397]
[1753089304291,5.9397308,190.72,190.7,72.48468397]
[1753089304488,5.9397308,190.72,190.71,53.60468397]
[1753089305294,3.80090155,190.72,190.71,53.60468397]
[1753089306296,0.06,190.75,190.72,16.78468397]
[1753089306592,0.06,190.75,190.74,16.78468397]
[1753089306895,0.06,190.76,190.74,224.28558552]
[1753089307083,1e-08,190.77,190.76,42.78468397]
[1753089307285,1e-08,190.77,190.76,110.1449222]
[1753089307591,1e-08,190.77,190.76,114.78003837]
[1753089308196,1e-08,190.77,190.76,120.0222275]
[1753089308494,1e-08,190.77,190.76,140.5268731]
[1753089308875,1e-08,190.77,190.76,144.32777465]
[1753089309192,1e-08,190.77,190.76,146.45951157]
[1753089309395,1e-08,190.77,190.76,153.44587665]
[1753089312070,0.06,190.79,190.78,55.69999999]
[1753089312267,0.06,190.79,190.78,115.21732243]
[1753089312892,1e-08,190.79,190.78,276.9661479]
[1753089313094,1e-08,190.8,190.79,24.66529833]
[1753089313284,0.06,190.81,190.79,24.66529833]
[1753089313285,1e-08,190.81,190.79,57.12207328]
[1753089313491,0.1,190.87,190.79,57.12207328]
[1753089313492,0.1,190.87,190.85,16.78468397]
[1753089313690,0.1,190.87,190.86,53.58468397]
[1753089313882,0.1,190.87,190.86,16.78468397]
[1753089314085,0.1,190.87,190.86,53.58468397]
[1753089320484,6.03263847,190.87,190.86,72.48468396]
[1753089320678,11.27180649,190.87,190.79,148.0]
[1753089320884,5.93263847,190.83,190.81,16.78468397]
[1753089321100,5.93263847,190.83,190.82,36.78]
[1753089322703,5.23950523,190.86,190.83,16.78468397]
[1753089323109,5.93263847,190.84,190.83,53.56468397]
[1753089324091,11.17263008,190.84,190.83,55.7]
[1753089324493,11.17263008,190.84,190.77,55.7]
[1753089324802,5.93263847,190.79,190.78,53.56468397]
[1753089325101,5.23999161,190.84,190.78,109.26468397]
[1753089325102,5.93263847,190.82,190.78,109.26468397]
[1753089325311,5.93263847,190.84,190.78,115.19732244]
[1753089325499,5.93263847,190.86,190.79,5.93263847]
[1753089325683,5.93263847,190.86,190.81,16.78468397]
[1753089325889,5.93263847,190.86,190.83,16.78468397]
[1753089326109,6.03263847,190.87,190.85,16.78468397]
[1753089326406,0.1,190.87,190.86,53.56468397]
[1753089326788,6.03263847,190.87,190.86,53.56468397]
[1753089327694,11.27180649,190.87,190.86,36.78]
[1753089327892,11.27180649,190.87,190.85,36.78]
[1753089328096,5.93263847,190.86,190.85,53.56468397]
[1753089328298,5.93263847,190.86,190.85,16.78468397]
[1753089328711,5.93263847,190.86,190.84,36.78]
[1753089328913,5.93263847,190.85,190.83,92.48]
[1753089329115,5.93263847,190.84,190.83,109.26468397]
[1753089329503,5.93263847,190.84,190.83,72.48468397]
[1753089330112,11.17263008,190.84,190.83,72.48468397]
[1753089330290,11.17263008,190.84,190.79,16.78468397]
[1753089330497,5.23999161,190.84,190.8,36.78]
[1753089330694,5.93263847,190.81,190.8,53.56468397]
[1753089331214,5.23999161,190.84,190.81,16.78468397]
[1753089331420,5.93263847,190.82,190.81,16.78468397]
[1753089333602,5.93263847,190.83,190.81,16.78468397]
[1753089333810,5.93263847,190.83,190.82,53.56468397]
[1753089334714,5.58699441,190.83,190.82,53.56468397]
[1753089335102,5.93263847,190.84,190.83,16.78468397]
[1753089335303,5.93263847,190.84,190.83,72.48468397]
[1753089338909,5.93263847,190.84,190.82,36.78]
[1753089339116,5.93263847,190.83,190.82,53.56468397]
[1753089339622,5.93263847,190.83,190.77,6.18166774]
[1753089339798,5.93263847,190.79,190.78,16.78468397]
[1753089339998,5.93263847,190.79,190.78,109.24468397]
[1753089341544,5.93263847,190.8,190.78,109.24468397]
[1753089343623,5.93263847,190.79,190.77,56.63979087]
[1753089343817,26.0,190.8,190.77,56.63979087]
[1753089344008,5.93263847,190.78,190.77,56.63979087]
[1753089344212,5.93263847,190.78,190.77,73.42447484]
[1753089344413,26.0,190.8,190.77,73.42447484]
[1753089344712,5.93263847,190.78,190.77,73.42447484]
[1753089348025,5.93263847,190.78,190.77,17.72447484]
[1753089348927,11.17427805,190.78,190.77,17.72447484]
[1753089349227,11.17427805,190.78,190.77,0.93979087]
[1753089350925,5.24145278,190.79,190.77,0.93979087]
[1753089351227,5.93263847,190.78,190.77,0.93979087]
[1753089353833,11.17427805,190.78,190.77,0.93979087]
[1753089357632,24.27837701,190.78,190.73,0.03]
[1753089357817,5.93263847,190.74,190.73,0.03]
[1753089358423,11.17537727,190.74,190.73,0.03]
[1753089359932,31.24255256,190.75,190.73,0.03]
[1753089360138,5.93263847,190.74,190.73,0.03]
[1753089360938,36.76,190.79,190.73,16.81468397]
[1753089361145,5.93263847,190.74,190.73,16.81468397]
[1753089365643,5.93263847,190.74,190.73,72.51468397]
[1753089367618,5.93263847,190.75,190.73,72.51468397]
[1753089368342,5.24211309,190.77,190.73,72.51468397]
[1753089368650,5.93263847,190.74,190.73,72.51468397]
[1753089371140,5.93263847,190.74,190.73,55.73]
[1753089371529,5.93263847,190.74,190.73,0.03]
[1753089377431,5.93263847,190.74,190.73,55.73]
[1753089378248,5.93263847,190.74,190.73,0.03]
[1753089382030,11.17537727,190.74,190.73,0.03]
[1753089382962,12.77507727,190.74,190.73,0.03]
[1753089383136,31.93263847,190.72,190.71,0.03]
[1753089383960,37.17592706,190.72,190.71,0.03]
[1753089384368,43.10856553,190.72,190.71,0.03]
[1753089385257,37.17592706,190.72,190.71,0.03]
[1753089385654,86.37536553,190.72,190.69,0.03]
[1753089385959,5.24466355,190.67,190.66,0.03]
[1753089386130,47.93730202,190.67,190.66,0.03]
[1753089387532,49.54110202,190.67,190.66,0.03]
[1753089388139,49.54110202,190.67,190.64,0.03]
[1753089388345,5.93263847,190.66,190.64,0.03]
[1753089389756,43.60846355,190.67,190.64,0.03]
[1753089389944,5.93263847,190.66,190.64,0.03]
[1753089390146,11.1775771,190.66,190.64,0.03]
[1753089390760,47.9375771,190.66,190.64,0.03]
[1753089391761,5.93263847,190.65,190.6,0.03]
[1753089391957,31.93263847,190.64,190.6,0.03]
[1753089392656,37.17812734,190.64,190.6,0.03]
[1753089393866,11.86527694,190.62,190.6,0.03]
[1753089394773,43.1115914,190.61,190.6,0.03]
[1753089397277,5.93263847,190.61,190.59,55.9]
[1753089398046,5.93263847,190.6,190.59,55.9]
[1753089398652,17.11186665,190.6,190.58,0.2]
[1753089398966,31.93263847,190.59,190.58,0.2]
[1753089400377,5.93263847,190.61,190.58,16.98468397]
[1753089400549,5.93263847,190.64,190.58,64.92446274]
[1753089400744,5.93263847,190.65,190.59,5.93263847]
[1753089401250,5.93263847,190.63,190.58,114.69182427]
[1753089402448,5.93263847,190.62,190.58,114.69182427]
[1753089403675,5.93263847,190.63,190.58,114.69182427]
[1753089403976,5.24500581,190.66,190.58,114.69182427]
[1753089404475,5.93263847,190.63,190.58,114.69182427]
[1753089404774,5.93263847,190.63,190.58,120.62446274]
[1753089405079,5.93263847,190.64,190.58,120.62446274]
[1753089405278,5.93263847,190.63,190.58,114.69182427]
[1753089406159,5.93263847,190.65,190.6,16.78468397]
[1753089406861,62.78,190.69,190.59,16.78468397]
[1753089406862,5.93263847,190.64,190.59,16.78468397]
[1753089407268,5.93263847,190.64,190.6,5.24658971]
[1753089407678,5.93263847,190.65,190.6,5.24658971]
[1753089408763,0.06,190.66,190.6,5.24658971]
[1753089409364,5.93263847,190.65,190.6,5.24658971]
[1753089410789,0.06,190.66,190.6,5.24658971]
[1753089410790,5.93263847,190.64,190.6,5.24658971]
[1753089411476,0.06,190.66,190.6,5.24658971]
[1753089411985,5.93263847,190.64,190.6,5.24658971]
[1753089412690,5.93263847,190.64,190.59,22.03151372]
[1753089413556,5.30498313,190.66,190.59,22.03151372]
[1753089413755,5.93263847,190.64,190.59,22.03151372]
[1753089416005,5.93263847,190.64,190.59,77.73151372]
[1753089417498,5.30504792,190.66,190.59,77.73151372]
[1753089417499,5.93263847,190.63,190.59,77.73151372]
[1753089418869,5.93263847,190.64,190.59,77.73151372]
[1753089420383,5.99263847,190.66,190.61,16.78468397]
[1753089420694,0.06,190.66,190.62,36.76]
[1753089420894,5.93263847,190.65,190.62,92.46]
[1753089422188,5.93263847,190.64,190.62,92.46]
[1753089422891,5.93263847,190.64,190.63,16.78468397]
[1753089423318,5.93263847,190.64,190.62,92.46]
[1753089423491,5.93263847,190.63,190.62,109.24468397]
[1753089424489,5.24538914,190.65,190.62,109.24468397]
[1753089424680,5.93263847,190.63,190.62,109.24468397]
[1753089426284,0.06,190.66,190.62,109.24468397]
[1753089426469,5.93263847,190.63,190.62,109.24468397]
[1753089427605,5.93263847,190.63,190.59,92.46]
[1753089427892,5.93263847,190.6,190.59,109.24468397]
[1753089428097,26.0,190.65,190.59,109.24468397]
[1753089428401,5.93263847,190.6,190.59,109.24468397]
[1753089429108,5.93263847,190.6,190.59,109.27468397]
[1753089429396,5.93263847,190.6,190.59,72.51468397]
[1753089431107,5.24548887,190.64,190.59,72.51468397]
[1753089431312,5.30516234,190.66,190.6,16.78468397]
[1753089431497,5.93263847,190.65,190.62,16.78468397]
[1753089432396,5.93263847,190.64,190.62,16.78468397]
[1753089433299,5.93263847,190.63,190.62,16.78468397]
[1753089435798,5.93263847,190.63,190.6,53.54468397]
[1753089436585,5.93263847,190.63,190.6,109.24468397]
[1753089437801,5.93263847,190.63,190.6,114.4912351]
[1753089438486,31.30499882,190.66,190.6,114.4912351]
[1753089438816,5.93263847,190.63,190.6,114.4912351]
[1753089439385,5.93263847,190.64,190.6,114.4912351]
[1753089440000,31.30499882,190.66,190.6,114.4912351]
[1753089440200,5.93263847,190.64,190.6,114.4912351]
[1753089440400,5.93263847,190.62,190.6,109.24468397]
[1753089441685,5.93263847,190.62,190.6,55.7]
[1753089442009,5.93263847,190.61,190.59,55.73]
[1753089442207,5.93263847,190.6,190.59,55.73]
[1753089442389,11.17922818,190.6,190.59,0.03]
[1753089444794,31.24658971,190.6,190.59,0.03]
[1753089444997,43.11186665,190.6,190.59,0.03]
[1753089445391,5.93263847,190.6,190.59,0.03]
[1753089447201,5.93263847,190.62,190.59,16.81468397]
[1753089447416,5.93263847,190.62,190.6,36.76]
[1753089447913,5.93263847,190.63,190.6,36.76]
[1753089448109,5.93263847,190.62,190.6,36.76]
[1753089450101,5.93263847,190.61,190.6,53.54468397]
[1753089451498,5.93263847,190.62,190.6,58.79124268]
[1753089452715,0.06,190.63,190.6,58.79124268]
[1753089452919,5.93263847,190.62,190.6,58.79124268]
[1753089453315,5.93263847,190.62,190.61,16.78468397]
[1753089453525,5.99263847,190.63,190.61,16.78468397]
[1753089454205,5.93263847,190.62,190.61,16.78468397]
[1753089454830,0.06,190.63,190.61,77.73095832]
[1753089455000,0.06,190.63,190.62,53.54468397]
[1753089455413,5.99263847,190.63,190.62,53.54468397]
[1753089455614,0.06,190.63,190.62,53.54468397]
[1753089456840,5.99263847,190.63,190.61,55.7]
[1753089457022,5.93263847,190.62,190.61,55.7]
[1753089457340,5.93263847,190.62,190.6,55.7]
[1753089457500,11.86527694,190.61,190.59,0.03]
[1753089457702,0.06,190.63,190.59,0.03]
[1753089457703,11.86527694,190.6,190.59,0.03]
[1753089458123,11.86527694,190.6,190.58,0.2]
[1753089458327,5.93263847,190.59,190.57,0.03]
[1753089458619,31.93263847,190.58,190.57,0.03]
[1753089458824,37.18005411,190.57,190.56,0.03]
[1753089465218,37.18005411,190.57,190.55,0.03]
[1753089465533,5.93263847,190.56,190.55,0.03]
[1753089466108,11.18032948,190.56,190.55,0.03]
[1753089469535,5.24769101,190.56,190.55,0.03]
[1753089469724,11.18032948,190.56,190.55,0.03]
[1753089470738,47.96032948,190.56,190.55,0.03]
[1753089472416,2.73914904,190.61,190.55,0.03]
[1753089472617,5.93263847,190.57,190.55,0.03]
[1753089473140,31.30642408,190.61,190.55,0.03]
[1753089473326,5.93263847,190.57,190.55,0.03]
[1753089475322,5.93263847,190.56,190.55,0.03]
[1753089475737,5.93263847,190.57,190.55,0.03]
[1753089477437,5.93263847,190.58,190.55,0.03]
[1753089480329,5.93263847,190.58,190.57,16.78468397]
[1753089480942,5.93263847,190.58,190.57,72.48468397]
[1753089483345,5.93263847,190.58,190.57,55.7]
[1753089483548,11.17977877,190.58,190.57,55.7]
[1753089483846,37.17977877,190.58,190.57,55.7]
[1753089484042,26.0,190.56,190.55,0.03]
[1753089484248,37.18032948,190.56,190.55,0.03]
[1753089485054,37.18032948,190.56,190.54,0.2]
[1753089485262,5.93263847,190.55,190.54,0.2]
[1753089486646,31.24769101,190.56,190.54,0.2]
[1753089486837,5.93263847,190.55,190.54,0.2]
[1753089488338,11.18060488,190.55,190.54,0.2]
[1753089489249,26.0,190.53,190.52,0.03]
[1753089489427,74.62527694,190.53,190.51,0.03]
[1753089489754,11.86527694,190.52,190.44,92.46]
[1753089489954,5.93263847,190.45,190.44,92.46]
[1753089490331,5.93263847,190.45,190.44,55.7]
[1753089492860,31.24992162,190.48,190.44,55.7]
[1753089493029,5.93263847,190.45,190.44,55.7]
[1753089494957,5.93263847,190.45,190.44,55.73]
[1753089496035,11.18336044,190.45,190.44,0.03]
[1753089496462,5.93263847,190.45,190.44,0.03]
[1753089496963,11.18336044,190.45,190.44,0.03]
[1753089497261,5.93263847,190.45,190.44,0.03]
[1753089499345,37.18336044,190.45,190.44,0.03]
[1753089500051,31.93263847,190.45,190.44,0.03]
[1753089500962,37.18336044,190.45,190.44,0.03]
[1753089502652,5.93263847,190.45,190.44,0.03]
[1753089504760,26.0,190.47,190.44,0.03]
[1753089504959,9.1881572,190.53,190.45,22.71732244]
[1753089505160,5.93263847,190.5,190.45,30.7429432]
[1753089505461,5.93263847,190.5,190.45,24.81030473]
[1753089505944,5.93263847,190.49,190.45,24.81030473]
[1753089506653,5.93263847,190.46,190.44,0.03]
[1753089506965,11.18200668,190.5,190.45,16.78468397]
[1753089507262,0.9,190.49,190.45,16.78468397]
[1753089508048,5.93263847,190.46,190.45,16.78468397]
[1753089510663,5.93263847,190.46,190.45,72.48468397]
[1753089510861,5.93263847,190.46,190.45,16.78468397]
[1753089513062,5.93263847,190.46,190.44,36.81]
[1753089513272,5.93263847,190.45,190.44,36.81]
[1753089513475,5.93263847,190.45,190.44,0.03]
[1753089518053,11.18336044,190.45,190.44,0.03]
[1753089520956,5.93263847,190.45,190.44,0.03]
[1753089521258,11.18336044,190.45,190.44,0.03]
[1753089521688,5.93263847,190.45,190.44,0.03]
[1753089522146,11.18336044,190.45,190.44,0.03]
[1753089524274,26.0,190.39,190.38,0.83483519]
[1753089524476,62.78,190.39,190.27,6.0121]
[1753089524679,62.78,190.39,190.27,11.26771584]
[1753089524873,5.93263847,190.31,190.27,11.26771584]
[1753089525071,5.93263847,190.31,190.28,16.78468397]